[Event "German Bundesliga 2021-22"]
[Site "Germany"]
[Date "2022.04.09"]
[Round "3.11"]
[White "Engel, Luis"]
[Black "Tomczak, Jacek"]
[Result "1/2-1/2"]
[ECO "B12"]
[WhiteElo "2564"]
[BlackElo "2584"]
[Annotator "TA"]
[PlyCount "54"]
[EventDate "2022.03.05"]
[EventType "team-tourn"]
[EventCountry "GER"]
[SourceTitle "playchess.com"]
[Source "ChessBase"]
[SourceQuality "1"]
[TimeControl "40/5400+30:1800+30"]

{[%evp 9,54,0,34,45,52,52,54,15,28,28,28,34,30,32,33,33,29,0,0,0,0,0,8,-119,-108,-100,0,0,0,0,5,0,0,0,0,-36,4,11,30,20,55,0,0,0,0,0,6]} 1. e4 {[%emt 0:00:00]} c6 {[%emt 0:02:30]} 2. d4 {[%emt 0:00:00]} d5 {[%emt 0:00:17]} 3. e5 {[%emt 0:00:00]} c5 {[%emt 0:00:37]} 4. dxc5 {[%emt 0:00:00]} e6 {[%emt 0:00:34]} 5. Bd3 {[%emt 0:00:00]} Bxc5 {[%emt 0:01:13]} (5... Nd7 $5 {[%cal Rd7e5]}) 6. Qg4 {[%emt 0:00:00] B12: Caro-Kann: Advance Variation.} Ne7 {[%emt 0:01:59]} 7. Nf3 {[%emt 0:00:00]} Ng6 {[%emt 0:04:10]} 8. h4 {[%emt 0:00:00][%cal Bh2h4,Bh4h5][%mdl 32] White is slightly better.} Nc6 {[%emt 0:10:55]} 9. h5 {[%emt 0:08:55]} Ncxe5 {[%emt 0:02:37]} 10. Nxe5 {[%emt 0:00:10]} Nxe5 {[%emt 0:00:04]} 11. Qxg7 {[%emt 0:00:06]} Nxd3+ {[%emt 0:00:19]} 12. cxd3 {[%emt 0:00:05] [#]} Kd7 $146 {[%emt 0:01:48]} ({Predecessor:} 12... Rf8 13. d4 Be7 14. Bh6 Bd7 15. Qxh7 Qb6 16. O-O Qxb2 17. Nd2 Qxd4 18. Bxf8 Bxf8 {1-0 (25) Vlassov,N (2384)-Ashutosh,K (1978) Udaipur 2019}) 13. Be3 {[%emt 0:07:57]} Qg8 {[%emt 0:11:55]} 14. h6 {[%emt 0:12:19]} Bf8 {[%emt 0:04:58]} 15. Qd4 {[%emt 0:18:28]} Qxg2 {[%emt 0:01:37]} 16. Rh5 {[%emt 0:06:17]} (16. Rf1 $1 $11 {was the only way to keep the balance.} Rg8 17. Qa4+ Kd6 18. Nc3) 16... Rg8 $17 {[%emt 0:02:37]} 17. Nc3 {[%emt 0:02:37][%cal Rc3d5] [#]} Qg4 {[%emt 0:18:36]} ({But not} 17... Qg1+ 18. Kd2 Qg4 19. Ne4 $14) (17... Be7 $1 $17 18. Rc1 Qg4 19. Qxg4 Rxg4) 18. Ne4 $1 $11 {[%emt 0:00:14] Hoping for Nf6+.} Be7 {[%emt 0:00:31]} (18... Qg1+ 19. Kd2 Qxa1 20. Nf6+ Kc7 21. Qc3+ Kd8 22. Bf4 Qxb2+ 23. Qxb2 $18) 19. Rh1 {[%emt 0:10:18] The board is on fire.} Ke8 {[%emt 0:06:04]} 20. Nf6+ {[%emt 0:00:33]} Bxf6 {[%emt 0:00:04]} 21. Qxf6 {[%emt 0:00:04]} Bd7 {[%emt 0:01:33] White must now prevent ...Rc8.} 22. Rc1 {[%emt 0:05:25]} d4 {[%emt 0:04:54] [#]} 23. Rh4 $1 {[%emt 0:02:34]} Qg6 {[%emt 0:01:49]} (23... Qf5 24. Qxf5) 24. Qxd4 {[%emt 0:03:16] Rc5 is the strong threat.} ({Of course not} 24. Qxg6 Rxg6 25. Rxd4 Bc6 $11) 24... Rd8 {[%emt 0:00:34]} 25. Rc3 {[%emt 0:04:26]} (25. Rc7 $14) 25... Bc6 {[%emt 0:04:23] The position is equal.} 26. Qc4 {[%emt 0:02:08]} Qf5 {[%emt 0:07:44]} 27. Rd4 {[%emt 0:01:58]} Rg1+ {[%emt 0:00:43] Weighted Error Value: White=0.16 (very precise) /Black=0.11 (very precise)} 1/2-1/2

[Event "German Bundesliga 2021-22"]
[Site "Germany"]
[Date "2022.04.09"]
[Round "3.12"]
[White "Kraemer, Martin"]
[Black "Ernst, Sipke"]
[Result "1-0"]
[ECO "C78"]
[WhiteElo "2584"]
[BlackElo "2532"]
[Annotator "TA"]
[PlyCount "85"]
[EventDate "2022.03.05"]
[EventType "team-tourn"]
[EventCountry "GER"]
[SourceTitle "playchess.com"]
[Source "ChessBase"]
[SourceQuality "1"]
[TimeControl "40/5400+30:1800+30"]

{[%evp 16,85,34,33,57,43,57,53,62,34,38,0,14,24,12,19,21,14,41,45,86,66,94,101,100,97,86,83,97,93,141,21,21,15,10,0,68,60,126,0,0,2,225,95,187,193,202,206,191,197,205,195,192,198,446,485,464,464,437,454,445,442,340,306,523,513,625,577,437,411,858,736]} 1. e4 {[%emt 0:00:00]} e5 {[%emt 0:00:00]} 2. Nf3 {[%emt 0:00:00]} Nc6 {[%emt 0:00:00]} 3. Bb5 {[%emt 0:00:00]} a6 {[%emt 0:00:00]} 4. Ba4 {[%emt 0:00:00]} Nf6 {[%emt 0:00:00]} 5. O-O {[%emt 0:00:00]} Bc5 {[%emt 0:00:00]} 6. c3 {[%emt 0:00:00]} b5 {[%emt 0:00:00]} 7. Bb3 {[%emt 0:00:00]} d6 {[%emt 0:00:00]} 8. d4 {[%emt 0:00:00]} Bb6 {[%emt 0:00:00]} 9. a4 {[%emt 0:00:00] 9.Be3 is more advanced technology.} Bg4 {[%emt 0:00:00] C78: Ruy Lopez: Archangelsk and Möller Defences.} 10. h3 {[%emt 0:00:00]} Bh5 {[%emt 0:00:00]} 11. Bg5 {[%emt 0:12:02] aiming for Bd5.} Rb8 {[%emt 0:00:43] White is slightly better.} 12. axb5 {[%emt 0:02:42]} (12. d5 {seems wilder.} Na5 13. Ba2 h6 14. Bxf6 Qxf6 15. Nbd2) 12... axb5 {[%emt 0:00:10]} 13. dxe5 {[%emt 0:16:34] [#]} Bxf3 $146 {[%emt 0:19:19]} ({Predecessor:} 13... Nxe5 14. g4 Bg6 15. Nxe5 dxe5 16. Qxd8+ Rxd8 17. Na3 h5 18. Bc2 hxg4 19. hxg4 c6 {½-½ (61) Azarov,S (2616)-Shalamberidze,A (2372) Tallinn 2014}) 14. Qxf3 {[%emt 0:05:26]} Nxe5 {[%emt 0:00:07]} 15. Qe2 {[%emt 0:00:44]} O-O {[%emt 0:00:38]} 16. Nd2 {[%emt 0:03:31]} Re8 {[%emt 0:07:34]} 17. Kh1 {[%emt 0:13:26]} c6 {[%emt 0:06:09]} 18. f4 {[%emt 0:01:39]} Ned7 {[%emt 0:01:54]} 19. Rae1 {[%emt 0:02:24]} Bc7 {[%emt 0:14:31]} 20. Qf3 {[%emt 0:03:17]} b4 {[%emt 0:07:47]} 21. Ba4 {[%emt 0:14:42]} bxc3 {[%emt 0:01:05]} 22. bxc3 {[%emt 0:00:01]} Rb6 {[%emt 0:09:59] [#]} (22... h6 $142 23. Bxf6 Nxf6) 23. e5 {[%emt 0:09:07]} (23. Nc4 $1 $16 {[%cal Rc4b6]} Ra6 24. Bc2) 23... dxe5 $11 {[%emt 0:00:20]} 24. Bxc6 {[%emt 0:00:02] And now Bxf6 would win. A strong pair of Bishops.} e4 $1 {[%emt 0:09:57]} 25. Bxe4 {[%emt 0:00:02]} Rbe6 {[%emt 0:05:22]} (25... h6 $11 26. Bh4 Nc5) 26. Rd1 $14 {[%emt 0:01:18] &Bianco is more active.} Nc5 {[%emt 0:12:01] [#]} (26... h6 $14 27. Bh4 Ba5) 27. Bf5 {[%emt 0:05:27]} (27. Nc4 $1 $16 Qe7 (27... Qb8 28. Bc6) 28. Bc6) 27... Re3 $11 {[%emt 0:00:13]} 28. Qc6 $36 {[%emt 0:00:04][%mdl 2048] Nc4 is the strong threat. White is more active.} Qe7 $2 {[%emt 0:00:14]} (28... Qd5 $11 {and Black is okay.} 29. Qxd5 (29. Qxc7 Qxf5 30. Bxf6 gxf6 $11) 29... Nxd5) 29. Nf3 {[%emt 0:02:29]} (29. Bxf6 $18 {and White stays clearly on top.} gxf6 30. Ra1) 29... h6 {[%emt 0:02:03]} (29... Bb8 $16) 30. Bxf6 $18 {[%emt 0:00:07]} gxf6 {[%emt 0:00:04]} 31. Bd7 {[%emt 0:05:34]} Rd8 {[%emt 0:04:32][%cal Oc5e4]} 32. Qxc7 {[%emt 0:00:06][%cal Od1d5] Threatens to win with Rd5!} Rxd7 {[%emt 0:00:05]} 33. Rxd7 {[%emt 0:00:03]} Nxd7 {[%emt 0:00:05]} 34. Nd4 {[%emt 0:00:57] Strongly threatening Nf5.} Kh7 $2 {[%emt 0:02:03]} (34... Nf8 {was worth a try.} 35. Qxe7 Rxe7) 35. Nf5 {[%emt 0:01:45][%csl LRe3,LRe7]} Rxh3+ {[%emt 0:00:02]} 36. gxh3 {[%emt 0:00:02]} Qe4+ {[%emt 0:00:07]} 37. Kg1 {[%emt 0:03:56]} Qxf5 {[%emt 0:00:05][%mdl 4096] Endgame KQR-KQN} 38. Qc4 {[%emt 0:00:43]} ({Don't play} 38. Rd1 Qg6+ 39. Kf2 Qc2+ 40. Ke1 Qe4+ 41. Kd2 Qa4 $18) 38... Kg7 {[%emt 0:00:02]} 39. Qe2 {[%emt 0:00:45]} Qc5+ $2 {[%emt 0:00:05]} (39... Qxh3 40. Qg2+ Qxg2+ 41. Kxg2 f5) 40. Kh2 {[%emt 0:00:10]} f5 {[%emt 0:01:19] Against Qg4+} 41. Qd3 {[%emt 0:00:00]} Nf6 {[%emt 0:00:00]} 42. Qd4 {[%emt 0:00:00]} Qc6 {[%emt 0:00:00]} (42... Qxd4 $142 43. cxd4 Kf8) 43. Rg1+ {[%emt 0:00:00] Weighted Error Value: White=0.24 (precise) /Black=0.50} 1-0

[Event "German Bundesliga 2021-22"]
[Site "Germany"]
[Date "2022.04.09"]
[Round "3.12"]
[White "Alonso Rosell, Alvar"]
[Black "Amin, Bassem"]
[Result "0-1"]
[ECO "A65"]
[WhiteElo "2570"]
[BlackElo "2682"]
[Annotator "TA"]
[PlyCount "94"]
[EventDate "2022.03.05"]
[EventType "team-tourn"]
[EventCountry "GER"]
[SourceTitle "playchess.com"]
[Source "ChessBase"]
[SourceQuality "1"]
[TimeControl "40/5400+30:1800+30"]

{[%evp 20,94,14,7,18,8,5,15,13,12,12,0,0,0,4,0,47,32,41,-8,-6,-6,0,0,0,0,0,-19,-14,-18,-24,-62,-9,-7,-22,-44,-29,-30,-18,-18,-18,-29,-31,-40,-32,-17,-22,-29,0,-3,0,-5,-2,-5,0,0,0,-5,0,0,0,-1,0,-8,-8,-255,-238,-482,-478,-456,-437,-737,-482,-427,-427,-312,-293]} 1. d4 {[%emt 0:00:00]} Nf6 {[%emt 0:00:00]} 2. c4 {[%emt 0:00:00]} g6 {[%emt 0:00:00]} 3. Nc3 {[%emt 0:00:00]} Bg7 {[%emt 0:00:00]} 4. e4 {[%emt 0:00:00]} d6 {[%emt 0:00:00]} 5. h3 {[%emt 0:00:00]} O-O {[%emt 0:00:00]} 6. Bg5 {[%emt 0:00:00]} c5 {[%emt 0:00:00]} 7. d5 {[%emt 0:00:00]} e6 {[%emt 0:00:00]} 8. Nf3 {[%emt 0:00:00]} exd5 {[%emt 0:07:39]} 9. cxd5 {[%emt 0:00:00]} Re8 {[%emt 0:02:53]} 10. Bd3 {[%emt 0:00:00]} c4 {[%emt 0:01:59]} 11. Bc2 {[%emt 0:00:00]} b5 {[%emt 0:01:51] A65: Modern Benoni: 6 e4.} 12. O-O {[%emt 0:00:00]} b4 {[%emt 0:04:04]} 13. Nb5 {[%emt 0:00:00]} Ba6 {[%emt 0:09:13] The position is equal.} 14. Ba4 {[%emt 0:00:00]} Rxe4 {[%emt 0:18:18]} 15. Nd2 {[%emt 0:00:00]} Re5 {[%emt 0:02:16]} 16. Bxf6 {[%emt 0:00:00]} ({Of course not} 16. Nf3 Rf5 17. g4 {[#]} Rxg5 $1 18. Nxg5 h6 $17) 16... Bxf6 {[%emt 0:00:33]} ({Don't take} 16... Qxf6 17. Nxc4 Re7 18. Nbxd6 $14) 17. Nxc4 {[%emt 0:00:00] [#]} Bxb5 $146 {[%emt 0:00:23]} (17... Nd7 $1 $11) ({Predecessor:} 17... Nd7 18. Nbxd6 Nb6 19. Nxf7 Kxf7 20. Nxe5+ Bxe5 21. Re1 Qd6 22. Bc6 Rf8 23. a3 b3 24. Qxb3 {½-½ (49) Susla,V (2348)-Wernikiewicz,Z (2347) LSS email 2018}) 18. Bxb5 $14 {[%emt 0:00:00]} Re7 {[%emt 0:00:08]} 19. Qa4 {[%emt 0:12:01]} (19. Qb3 $14 {should be considered.}) 19... a6 $11 {[%emt 0:15:07][%cal Oa6b5]} 20. Bc6 {[%emt 0:01:48]} Nxc6 {[%emt 0:00:39]} 21. dxc6 {[%emt 0:00:07]} d5 {[%emt 0:00:47]} 22. Rad1 {[%emt 0:01:32]} Re6 {[%emt 0:00:30]} 23. Rd3 {[%emt 0:32:11]} a5 {[%emt 0:07:52]} 24. Qb5 {[%emt 0:40:55]} d4 {[%emt 0:01:12]} 25. a3 {[%emt 0:00:53]} Qe8 {[%emt 0:09:06]} (25... bxa3 $15 26. Rxa3 Rb8) 26. axb4 {[%emt 0:03:31]} ({But not} 26. Nxa5 Re5 27. Qc4 Rexa5 $17) 26... axb4 {[%emt 0:00:09]} 27. Qxb4 {[%emt 0:02:06]} Qxc6 {[%emt 0:00:38] [#] Strongly threatening ...Ra4.} 28. Nd2 {[%emt 0:03:19]} Qc2 {[%emt 0:02:45]} 29. Qb3 {[%emt 0:01:08]} Qc7 {[%emt 0:00:44]} 30. Nf3 {[%emt 0:03:01]} Rb6 {[%emt 0:02:25]} 31. Qd1 {[%emt 0:00:16]} Rxb2 {[%emt 0:00:29]} 32. Nxd4 {[%emt 0:00:46]} Raa2 {[%emt 0:02:16]} 33. Nf3 {[%emt 0:01:14] Inhibits Bh4.} Qf4 {[%emt 0:07:41]} 34. Rd7 {[%emt 0:01:07]} Qf5 {[%emt 0:01:35]} 35. Qd5 {[%emt 0:01:09]} Qxd5 {[%emt 0:00:14]} 36. Rxd5 {[%emt 0:00:02]} h6 {[%emt 0:02:13]} 37. g3 {[%emt 0:00:35]} Bc3 {[%emt 0:00:42]} 38. Rd3 {[%emt 0:00:59]} Bb4 {[%emt 0:01:37]} 39. Ne5 {[%emt 0:00:38]} Re2 {[%emt 0:00:20]} 40. Rd8+ {[%emt 0:00:35]} Kg7 {[%emt 0:00:09]} 41. Rd5 {[%emt 0:30:18]} Ba5 {[%emt 0:00:00]} 42. Nc4 $2 {[%emt 0:00:00] This move loses the game for White.} (42. Rb5 $11 {and White stays safe.}) 42... Be1 $19 {[%emt 0:00:00][%cal Re1f2]} 43. Ne5 $2 {[%emt 0:00:00]} (43. Kg2) 43... Bxf2+ {[%emt 0:00:00]} 44. Kh1 {[%emt 0:00:00]} h5 {[%emt 0:00:00]} 45. g4 {[%emt 0:00:00]} (45. Nf3 $142) 45... Bb6 {[%emt 0:00:00][%csl Ga2][%cal Re2h2]} 46. Nf3 {[%emt 0:00:00] Against Rh2+} hxg4 {[%emt 0:00:00]} 47. hxg4 {[%emt 0:00:00]} Ra8 {[%emt 0:00:00] Weighted Error Value: White=0.33/Black=0.15 (very precise)} 0-1

[Event "German Bundesliga 2021-22"]
[Site "Germany"]
[Date "2022.04.09"]
[Round "3.12"]
[White "Vogel, Roven"]
[Black "Dardha, Daniel"]
[Result "1/2-1/2"]
[ECO "D41"]
[WhiteElo "2452"]
[BlackElo "2541"]
[Annotator "RC"]
[PlyCount "64"]
[EventDate "2022.03.05"]
[EventType "team-tourn"]
[EventCountry "GER"]
[SourceTitle "playchess.com"]
[Source "ChessBase"]
[SourceQuality "1"]
[TimeControl "40/5400+30:1800+30"]

1. d4 {[%emt 0:00:00]} Nf6 {[%emt 0:00:00]} 2. c4 {[%emt 0:00:00]} e6 {[%emt 0:00:00]} 3. Nf3 {[%emt 0:00:00]} d5 {[%emt 0:00:00]} 4. Nc3 {[%emt 0:00:00]} c5 {[%emt 0:00:00]} 5. cxd5 {[%emt 0:00:00]} cxd4 {[%emt 0:00:00]} 6. Qxd4 {[%emt 0:00:00]} exd5 {[%emt 0:00:00]} 7. e4 {[%emt 0:00:00]} dxe4 {[%emt 0:00:00]} 8. Qxd8+ {[%emt 0:00:00]} Kxd8 {[%emt 0:00:00]} 9. Ng5 {[%emt 0:00:00]} Be6 {[%emt 0:00:00]} 10. Nxe6+ {[%emt 0:00:00]} fxe6 {[%emt 0:00:00]} 11. Bg5 {[%emt 0:01:40]} Nc6 {[%emt 0:00:00]} 12. Bb5 {[%emt 0:04:16]} Rc8 {[%emt 0:00:00]} 13. O-O {[%emt 0:03:05]} Ke8 {[%emt 0:07:55]} 14. Rad1 {[%emt 0:19:36]} Be7 {[%emt 0:06:05]} 15. Rfe1 {[%emt 0:14:04]} Kf7 {[%emt 0:02:49]} 16. Nxe4 {[%emt 0:01:34]} Nxe4 {[%emt 0:10:49]} 17. Bxe7 {[%emt 0:00:25]} Kxe7 {[%emt 0:16:25]} 18. Rxe4 {[%emt 0:01:58]} Rhd8 {[%emt 0:00:18]} 19. Rde1 {[%emt 0:05:29]} Nd4 {[%emt 0:00:26]} 20. Bd3 {[%emt 0:00:16]} h6 {[%emt 0:01:32]} 21. h4 {[%emt 0:02:33]} g5 {[%emt 0:12:24]} 22. hxg5 {[%emt 0:01:33]} hxg5 {[%emt 0:00:03]} 23. f4 {[%emt 0:00:19]} gxf4 {[%emt 0:04:09]} 24. Rxf4 {[%emt 0:00:06]} Nc2 {[%emt 0:00:41]} 25. Bxc2 {[%emt 0:01:34]} Rxc2 {[%emt 0:00:06]} 26. Rfe4 {[%emt 0:00:58]} Rdd2 {[%emt 0:03:14]} 27. Rxe6+ {[%emt 0:00:08]} Kf7 {[%emt 0:00:16]} 28. Re7+ {[%emt 0:00:15]} Kf6 {[%emt 0:01:01]} 29. R1e6+ {[%emt 0:00:27]} Kf5 {[%emt 0:00:00]} 30. Re5+ {[%emt 0:00:04]} Kf6 {[%emt 0:00:00]} 31. R5e6+ {[%emt 0:00:03]} Kf5 {[%emt 0:00:00]} 32. Re5+ {[%emt 0:00:04]} Kf6 {[%emt 0:00:00]} 1/2-1/2

[Event "German Bundesliga 2021-22"]
[Site "Germany"]
[Date "2022.04.09"]
[Round "3.12"]
[White "Stark, Lars"]
[Black "Heimann, Andreas"]
[Result "0-1"]
[ECO "D38"]
[WhiteElo "2386"]
[BlackElo "2581"]
[Annotator "TA"]
[PlyCount "121"]
[EventDate "2022.03.05"]
[EventType "team-tourn"]
[EventCountry "GER"]
[SourceTitle "playchess.com"]
[Source "ChessBase"]
[SourceQuality "1"]
[TimeControl "40/5400+30:1800+30"]

{[%evp 14,121,2,18,27,21,32,40,33,37,41,0,0,8,8,6,4,0,0,0,0,0,0,0,0,0,0,0,0,0,0,0,0,0,0,0,0,0,0,0,0,0,0,0,0,0,0,0,0,0,0,-4,0,0,0,0,0,0,0,0,0,0,8,0,0,-45,-25,-237,-237,-687,-391,-464,0,0,0,0,0,0,0,0,0,0,0,-1993,-2175,-2111,-1862,-2044,-1753,-1645,-1303,-1868,-1593,-29963,-29966,-29969,-29970,-29968,-29969,-29968,-29967,-29969,-29972,-29971,-29972,-29978,-29980,-29980,-29981,-29981]} 1. c4 {[%emt 0:00:00]} Nf6 {[%emt 0:00:00]} 2. Nc3 {[%emt 0:00:00]} e6 {[%emt 0:00:00]} 3. Nf3 {[%emt 0:00:00]} d5 {[%emt 0:00:00]} 4. d4 {[%emt 0:00:00]} Bb4 {[%emt 0:00:00]} 5. e3 {[%emt 0:05:49]} O-O {[%emt 0:00:00]} 6. Bd2 {[%emt 0:00:35]} c5 {[%emt 0:06:53]} 7. a3 {[%emt 0:37:43]} Bxc3 {[%emt 0:00:19]} 8. Bxc3 {[%emt 0:00:24]} Ne4 {[%emt 0:00:06] E51: Nimzo-Indian: Rubinstein: 4...0-0 5 Nf3 d5.} 9. Rc1 {[%emt 0:00:43]} Nxc3 {[%emt 0:00:24]} 10. Rxc3 {[%emt 0:00:18]} cxd4 {[%emt 0:00:09] White is slightly better.} 11. Qxd4 {[%emt 0:06:25]} Nc6 {[%emt 0:00:09]} 12. Qc5 {[%emt 0:00:45]} Ne7 {[%emt 0:23:05] [#]} 13. Be2 $146 {[%emt 0:03:48]} ({Predecessor:} 13. Qd4 b6 14. Bd3 Bb7 15. Qg4 h6 16. O-O dxc4 17. Bxc4 Nd5 18. Rd3 Qf6 19. Qd4 Rac8 20. Rfd1 Qxd4 {½-½ (20) Sterck,A (2316)-Hamblok,R (2261) Roux 2019}) 13... b6 {[%emt 0:03:35]} 14. Qd4 {[%emt 0:00:08]} Bb7 {[%emt 0:00:07]} 15. O-O {[%emt 0:00:44]} dxc4 {[%emt 0:00:30]} 16. Rxc4 {[%emt 0:03:49]} Ba6 {[%emt 0:01:04] And now ...Qxd4 would win.} 17. Rc2 {[%emt 0:00:35]} Bxe2 {[%emt 0:00:06]} 18. Rxe2 {[%emt 0:00:04]} Qc7 {[%emt 0:00:58]} 19. Qa4 {[%emt 0:07:08]} Rac8 {[%emt 0:05:14]} 20. Rd2 {[%emt 0:13:12]} Rfd8 {[%emt 0:00:50] Against Rd7} 21. Rxd8+ {[%emt 0:01:44]} Rxd8 {[%emt 0:00:10]} 22. h3 {[%emt 0:00:15]} Qd7 {[%emt 0:01:03]} 23. Qxd7 {[%emt 0:02:01]} Rxd7 $11 {[%emt 0:00:07][%mdl 4096] Endgame KRN-KRN} 24. Rc1 {[%emt 0:00:10]} f6 {[%emt 0:00:04]} 25. Kf1 {[%emt 0:02:32]} Kf7 {[%emt 0:00:21]} 26. Ke2 {[%emt 0:02:06]} e5 {[%emt 0:00:21]} 27. Nd2 {[%emt 0:03:14]} Ke6 {[%emt 0:17:39]} 28. Ne4 {[%emt 0:01:57]} h6 {[%emt 0:01:04]} 29. Rd1 {[%emt 0:03:26]} Rxd1 {[%emt 0:08:29]} 30. Kxd1 {[%emt 0:00:05] KN-KN} f5 {[%emt 0:00:06]} 31. Nc3 {[%emt 0:00:48]} e4 {[%emt 0:00:04]} 32. Nb5 {[%emt 0:01:16]} Nc6 {[%emt 0:00:31]} 33. Kd2 {[%emt 0:02:25]} g5 {[%emt 0:02:38]} 34. Kc3 {[%emt 0:00:39]} Ke5 {[%emt 0:00:05]} 35. Kc4 {[%emt 0:01:22]} f4 {[%emt 0:01:16]} 36. g3 {[%emt 0:01:17]} f3 {[%emt 0:02:46]} 37. b4 {[%emt 0:00:41]} a6 {[%emt 0:04:04]} 38. Nc3 {[%emt 0:00:22] Black must now prevent b5.} Ne7 {[%emt 0:00:08]} 39. a4 {[%emt 0:00:55]} Nf5 {[%emt 0:00:32]} 40. Nd1 {[%emt 0:00:14]} (40. Nb1 $1 $11 {and White stays safe.}) 40... h5 $19 {[%emt 0:00:47]} 41. g4 $2 {[%emt 0:00:00]} (41. a5 Nd6+ 42. Kb3) 41... Nd6+ {[%emt 0:00:00]} 42. Kb3 {[%emt 0:00:00]} h4 {[%emt 0:00:00]} (42... hxg4 $1 $19 43. hxg4 Ne8) 43. Nc3 $11 {[%emt 0:00:00]} Ne8 {[%emt 0:00:00] Strongly threatening ...Nf6.} 44. Nb1 {[%emt 0:00:00]} Nf6 {[%emt 0:00:00][%cal Of6g4] Hoping for ...Nxg4!} 45. Nd2 $1 {[%emt 0:00:00]} Kd5 {[%emt 0:00:00]} 46. b5 {[%emt 0:05:03]} axb5 {[%emt 0:16:58]} (46... a5 $5 47. Kc3 Kc5 48. Nb3+ Kd5 $11) 47. axb5 {[%emt 0:00:09]} Nd7 {[%emt 0:00:08]} 48. Nc4 $2 {[%emt 0:03:20][%mdl 8192] [#]} (48. Kb2 $11) 48... Nc5+ $1 $19 {[%emt 0:05:15]} 49. Kc3 {[%emt 0:00:07] [#]} Nd3 $1 {[%emt 0:00:13]} 50. Nxb6+ {[%emt 0:00:14]} Kc5 {[%emt 0:00:08]} 51. Nc4 {[%emt 0:02:21]} Nxf2 {[%emt 0:00:08]} 52. b6 {[%emt 0:00:17]} Kc6 {[%emt 0:02:43]} 53. Kd4 {[%emt 0:02:45]} Nxh3 {[%emt 0:05:54] Black mates.} 54. Kxe4 {[%emt 0:03:17]} f2 {[%emt 0:00:42]} 55. Nd2 {[%emt 0:00:07]} Ng1 {[%emt 0:00:03]} 56. Nf1 {[%emt 0:06:06]} h3 {[%emt 0:00:29]} 57. Kd3 {[%emt 0:00:06]} Nf3 {[%emt 0:00:10]} 58. Ke2 {[%emt 0:00:05] [#]} h2 $1 {[%emt 0:00:05]} 59. Nxh2 {[%emt 0:00:04]} (59. Ng3 Nd2) 59... Nxh2 {[%emt 0:00:04]} 60. Kxf2 {[%emt 0:00:02]} Nxg4+ {[%emt 0:00:28]} 61. Ke2 {Weighted Error Value: White=0.54/Black=0.14 (very precise)} 0-1